fUSD/lending_fUSD_20240407
["ID","MTS","AMOUNT","RATE_DAILY","PERIOD"]
[321785453,1712511137242,-2434.94,0.00020821,2]
[321785454,1712511137251,-500.0,0.00020821,2]
[321785455,1712511137261,-4317.53,0.00020821,2]
[321785456,1712511137270,-389.47153468,0.00020821,2]
[321785457,1712511137283,-233.68292081,0.00020821,2]
[321785458,1712511137292,-155.78861387,0.00020821,2]
[321785459,1712511137301,-2000.0,0.00020887,2]
[321785460,1712511137311,-200.0,0.00020887,2]
[321785461,1712511137320,-5800.0,0.00020892,2]
[321785462,1712511137329,-500.0,0.00020896,2]
[321785463,1712511137338,-500.0,0.00020896,2]
[321785464,1712511137348,-500.0,0.00020896,2]
[321785465,1712511137357,-609.05,0.00020896,2]
[321785466,1712511137366,-500.0,0.00020896,2]
[321785467,1712511137377,-500.0,0.00020896,2]
[321785468,1712511137394,-338.77580803,0.00020896,2]
[321785469,1712511137404,-500.0,0.00020896,2]
[321785470,1712511137413,-716.81,0.00020896,2]
[321785471,1712511137422,-500.0,0.00020896,2]
[321785472,1712511137431,-500.0,0.00020896,2]
[321785473,1712511137441,-500.0,0.00020896,2]
[321785474,1712511137450,-500.0,0.00020896,2]
[321785475,1712511137459,-500.0,0.00020896,2]
[321785476,1712511137468,-500.0,0.00020896,2]
[321785477,1712511137477,-500.0,0.00020896,2]
[321785478,1712511137486,-569.13575367,0.00020896,2]
[321785479,1712511137496,-159.47323046,0.00020896,2]
[321785480,1712511137505,-532.11,0.00020896,2]
[321785481,1712511137515,-536.98,0.00020896,2]
[321785482,1712511137524,-500.0,0.00020896,2]
[321785483,1712511137534,-500.0,0.00020896,2]
[321785484,1712511137543,-615.95,0.00020896,2]
[321785485,1712511137553,-565.13,0.00020896,2]
[321785486,1712511137562,-623.34,0.00020896,2]
[321785487,1712511137571,-500.0,0.00020896,2]
[321785488,1712511137581,-782.7,0.00020896,2]
[321785489,1712511137590,-500.0,0.00020896,2]
[321785490,1712511137599,-500.0,0.00020896,2]
[321785491,1712511137608,-500.0,0.00020896,2]
[321785492,1712511137618,-669.38,0.00020896,2]
[321785493,1712511137627,-698.32,0.00020896,2]
[321785494,1712511137637,-571.14,0.00020896,2]
[321785495,1712511137647,-503.32,0.00020896,2]
[321785496,1712511137656,-604.97,0.00020896,2]
[321785497,1712511137666,-500.0,0.00020896,2]
[321785498,1712511137676,-576.44,0.00020896,2]
[321785499,1712511137685,-500.0,0.00020896,2]
[321785500,1712511137695,-298.29926542,0.00020896,2]
[321785501,1712511137704,-694.7,0.00020896,2]
[321785502,1712511137714,-504.83,0.00020896,2]
[321785503,1712511137724,-500.0,0.00020896,2]
[321785504,1712511137734,-565.12,0.00020896,2]
[321785505,1712511137744,-626.62,0.00020896,2]
[321785506,1712511137754,-638.7,0.00020896,2]
[321785507,1712511137763,-500.0,0.00020896,2]
[321785508,1712511137772,-500.0,0.00020896,2]
[321785509,1712511137784,-925.42,0.00020896,2]
[321785510,1712511137794,-1021.04,0.00020896,2]
[321785511,1712511137804,-593.01,0.00020896,2]
[321785512,1712511137904,-1108.29,0.00020896,2]
[321785513,1712511137914,-1060.58,0.00020896,2]
[321785514,1712511137924,-520.83,0.00020896,2]
[321785515,1712511137934,-934.26,0.00020896,2]
[321785516,1712511137944,-577.94,0.00020896,2]
[321785517,1712511137954,-502.66,0.00020896,2]
[321785518,1712511137964,-1492.61,0.00020896,2]
[321785519,1712511137976,-4199.43,0.00020896,2]
[321785520,1712511137986,-1822.45,0.00020896,2]
[321785521,1712511137995,-3616.03,0.00020896,2]
[321785522,1712511138005,-1317.32,0.00020896,2]
[321785523,1712511138015,-5324.05,0.00020896,2]
[321785524,1712511138025,-583.11,0.00020896,2]
[321785525,1712511138037,-2684.12,0.00020896,2]
[321785526,1712511138048,-564.25,0.00020896,2]
[321785527,1712511138058,-630.78,0.00020896,2]
[321785528,1712511138068,-500.0,0.00020896,2]
[321785529,1712511138077,-500.0,0.00020896,2]
[321785530,1712511138087,-532.55,0.00020896,2]
[321785531,1712511138097,-1412.85,0.00020896,2]
[321785532,1712511138108,-2439.1,0.00020896,2]
[321785533,1712511138118,-1834.99,0.00020896,2]
[321785534,1712511138128,-1457.39,0.00020896,2]
[321785535,1712511138138,-174.9,0.00020896,2]
[321785536,1712511138147,-864.95,0.00020896,2]
[321785537,1712511138157,-580.95,0.00020896,2]
[321785538,1712511138167,-1386.75,0.00020896,2]
[321785539,1712511138178,-500.0,0.00020896,2]
[321785540,1712511138188,-1376.58,0.00020896,2]
[321785541,1712511138198,-1087.77,0.00020896,2]
[321785542,1712511138208,-650.28,0.00020896,2]
[321785543,1712511138218,-1137.79,0.00020896,2]
[321785544,1712511138228,-1253.2,0.00020896,2]
[321785545,1712511138239,-1690.12,0.00020896,2]
[321785546,1712511138250,-500.0,0.00020897,2]
[321785547,1712511138260,-518.37924191,0.00020897,2]
[321785548,1712511138271,-500.0,0.00020897,2]
[321785549,1712511138284,-502.0833219,0.00020897,2]
[321785550,1712511138296,-500.0,0.00020897,2]
[321785551,1712511138309,-500.0,0.00020897,2]
[321785552,1712511138319,-500.0,0.00020897,2]
[321785553,1712511138329,-500.0,0.00020897,2]
[321785554,1712511138339,-500.0,0.00020897,2]
[321785555,1712511138349,-500.0,0.00020897,2]
[321785556,1712511138359,-638.71346975,0.00020897,2]
[321785557,1712511138369,-500.0,0.00020897,2]
[321785558,1712511138379,-500.0,0.00020897,2]
[321785559,1712511138388,-514.23331691,0.00020897,2]
[321785560,1712511138397,-500.0,0.00020897,2]
[321785561,1712511138407,-500.0,0.00020897,2]
[321785562,1712511138416,-520.69034722,0.00020897,2]
[321785563,1712511138425,-500.0,0.00020897,2]
[321785564,1712511138435,-513.61379737,0.00020897,2]
[321785565,1712511138444,-500.0,0.00020897,2]
[321785566,1712511138453,-513.73095447,0.00020897,2]
[321785567,1712511138463,-509.03139049,0.00020897,2]
[321785568,1712511138472,-611.37013149,0.00020897,2]
[321785569,1712511138481,-500.0,0.00020897,2]
[321785570,1712511138490,-500.0,0.00020897,2]
[321785571,1712511138500,-244.60694497,0.00020897,2]
[321785572,1712511138509,-500.0,0.00020897,2]
[321785573,1712511138518,-517.61794728,0.00020897,2]
[321785574,1712511138527,-500.0,0.00020897,2]
[321785575,1712511138539,-500.0,0.00020897,2]
[321785576,1712511138551,-500.0,0.00020897,2]
[321785577,1712511138560,-500.0,0.00020897,2]
[321785578,1712511138569,-210.82717613,0.00020897,2]
[321785579,1712511138577,-500.0,0.00020897,2]
[321785580,1712511138587,-500.0,0.00020897,2]
[321785581,1712511138597,-500.0,0.00020897,2]
[321785582,1712511138606,-500.0,0.00020897,2]
[321785583,1712511138615,-638.5,0.00020897,2]
[321785584,1712511138624,-574.34628501,0.00020897,2]
[321785585,1712511138634,-500.0,0.00020897,2]
[321785586,1712511138643,-500.0,0.00020897,2]
[321785587,1712511138652,-500.0,0.00020897,2]
[321785588,1712511138662,-500.0,0.00020897,2]
[321785589,1712511138671,-500.0,0.00020897,2]
[321785590,1712511138680,-514.81660679,0.00020897,2]
[321785591,1712511138689,-525.43946003,0.00020897,2]
[321785592,1712511138699,-500.0,0.00020897,2]
[321785593,1712511138708,-500.0,0.00020897,2]
[321785594,1712511138717,-500.0,0.00020897,2]
[321785595,1712511138727,-500.0,0.00020897,2]
[321785596,1712511138736,-500.0,0.00020897,2]
[321785597,1712511138746,-500.0,0.00020897,2]
[321785598,1712511138755,-500.0,0.00020897,2]
[321785599,1712511138764,-500.0,0.00020897,2]
[321785600,1712511138773,-500.0,0.00020897,2]
[321785601,1712511138785,-508.5729691,0.00020897,2]
[321785602,1712511138795,-500.0,0.00020897,2]
[321785603,1712511138805,-500.0,0.00020897,2]
[321785604,1712511138815,-306.31448246,0.00020897,2]
[321785605,1712511138825,-268.0566353,0.00020897,2]
[321785606,1712511138835,-500.0,0.00020897,2]
[321785607,1712511138844,-500.0,0.00020897,2]
[321785608,1712511138854,-500.0,0.00020897,2]
[321785609,1712511138863,-500.0,0.00020897,2]
[321785610,1712511138873,-500.0,0.00020897,2]
[321785611,1712511138883,-501.07,0.00020897,2]
[321785612,1712511138895,-500.0,0.00020897,2]
[321785613,1712511138908,-500.0,0.00020897,2]
[321785614,1712511138920,-500.0,0.00020897,2]
[321785615,1712511138931,-504.81398038,0.00020897,2]
[321785616,1712511138943,-500.0,0.00020897,2]
[321785617,1712511138952,-500.0,0.00020897,2]
[321785618,1712511138962,-520.18568386,0.00020897,2]
[321785619,1712511138973,-515.64461742,0.00020897,2]
[321785620,1712511138982,-500.0,0.00020897,2]
[321785621,1712511138991,-500.0,0.00020897,2]
[321785622,1712511139001,-510.43263681,0.00020897,2]
[321785623,1712511139010,-500.0,0.00020897,2]
[321785624,1712511139019,-500.0,0.00020897,2]
[321785625,1712511139028,-525.00601312,0.00020897,2]
[321785626,1712511139040,-609.05,0.00020897,2]
[321785627,1712511139049,-500.0,0.00020897,2]
[321785628,1712511139059,-500.0,0.00020897,2]
[321785629,1712511139069,-194.58756338,0.00020897,2]
[321785630,1712511139079,-500.0,0.00020897,2]
[321785631,1712511139090,-500.0,0.00020897,2]
[321785632,1712511139099,-500.0,0.00020897,2]
[321785633,1712511139109,-509.32345102,0.00020897,2]
[321785634,1712511139119,-500.0,0.00020897,2]
[321785635,1712511139128,-500.0,0.00020897,2]
[321785636,1712511139138,-490.70303185,0.00020897,2]
[321785637,1712511139147,-500.0,0.00020897,2]
[321785638,1712511139157,-509.6929835,0.00020897,2]
[321785639,1712511139166,-500.0,0.00020897,2]
[321785640,1712511139176,-708.92,0.00020897,2]
[321785641,1712511139185,-500.0,0.00020897,2]
[321785642,1712511139195,-517.33413981,0.00020897,2]
[321785643,1712511139204,-500.0,0.00020897,2]
[321785644,1712511139215,-500.0,0.00020897,2]
[321785645,1712511139224,-500.0,0.00020897,2]
[321785646,1712511139234,-508.76452074,0.00020897,2]
[321785647,1712511139243,-500.0,0.00020897,2]
[321785648,1712511139253,-500.0,0.00020897,2]
[321785649,1712511139262,-500.0,0.00020897,2]
[321785650,1712511139272,-500.0,0.00020897,2]
[321785651,1712511139283,-500.0,0.00020897,2]
[321785652,1712511139292,-500.0,0.00020897,2]
[321785653,1712511139301,-500.0,0.00020897,2]
[321785654,1712511139311,-562.65,0.00020897,2]
[321785655,1712511139320,-500.0,0.00020897,2]
[321785656,1712511139330,-500.0,0.00020897,2]
[321785657,1712511139339,-716.81,0.00020897,2]
[321785658,1712511139349,-500.0,0.00020897,2]
[321785659,1712511139358,-523.81896647,0.00020897,2]
[321785660,1712511139368,-500.0,0.00020897,2]
[321785661,1712511139377,-500.0,0.00020897,2]
[321785662,1712511139386,-517.38000507,0.00020897,2]
[321785663,1712511139396,-500.0,0.00020897,2]
[321785664,1712511139406,-783.33,0.00020897,2]
[321785665,1712511139415,-500.0,0.00020897,2]
[321785666,1712511139424,-273.74815521,0.00020897,2]
[321785667,1712511139433,-500.0,0.00020897,2]
[321785668,1712511139443,-500.0,0.00020897,2]
[321785669,1712511139452,-547.43473676,0.00020897,2]
[321785670,1712511139461,-500.0,0.00020897,2]
[321785671,1712511139470,-500.0,0.00020897,2]
[321785672,1712511139479,-589.24,0.00020897,2]
[321785673,1712511139488,-503.03909443,0.00020897,2]
[321785674,1712511139498,-500.0,0.00020897,2]
[321785675,1712511139507,-506.62133003,0.00020897,2]
[321785676,1712511139516,-339.08193725,0.00020897,2]
[321785677,1712511139525,-500.0,0.00020897,2]
[321785678,1712511139535,-500.0,0.00020897,2]
[321785679,1712511139544,-500.0,0.00020897,2]
[321785680,1712511139553,-500.0,0.00020897,2]
[321785681,1712511139562,-500.0,0.00020897,2]
[321785682,1712511139572,-500.0,0.00020897,2]
[321785683,1712511139581,-500.0,0.00020897,2]
[321785684,1712511139590,-500.0,0.00020897,2]
[321785685,1712511139599,-500.0,0.00020897,2]
[321785686,1712511139608,-500.0,0.00020897,2]
[321785687,1712511139617,-500.0,0.00020897,2]
[321785688,1712511139626,-595.73061967,0.00020897,2]
[321785689,1712511139635,-500.0,0.00020897,2]
[321785690,1712511139644,-500.0,0.00020897,2]
[321785691,1712511139653,-500.0,0.00020897,2]
[321785692,1712511139663,-500.0,0.00020897,2]
[321785693,1712511139672,-509.46805933,0.00020897,2]
[321785694,1712511139681,-500.0,0.00020897,2]
[321785695,1712511139690,-500.0,0.00020897,2]
[321785696,1712511139699,-453.80775713,0.00020897,2]
[321785697,1712511139709,-500.0,0.00020897,2]
[321785698,1712511139718,-500.0,0.00020897,2]
[321785699,1712511139727,-500.0,0.00020897,2]
[321785700,1712511139736,-523.41608203,0.00020897,2]
[321785701,1712511139746,-500.0,0.00020897,2]
[321785702,1712511139755,-1000.0,0.00020897,2]
[321785703,1712511139765,-500.0,0.00020897,2]
[321785704,1712511139774,-500.0,0.00020897,2]
[321785705,1712511139784,-500.0,0.00020897,2]
[321785706,1712511139793,-394.19735494,0.00020897,2]
[321785707,1712511139802,-500.0,0.00020897,2]
[321785708,1712511139812,-500.0,0.00020897,2]
[321785709,1712511139821,-532.11,0.00020897,2]
[321785710,1712511139830,-500.0,0.00020897,2]
[321785711,1712511139839,-500.0,0.00020897,2]
[321785712,1712511139849,-500.0,0.00020897,2]
[321785713,1712511139857,-500.0,0.00020897,2]
[321785714,1712511139867,-432.18152403,0.00020897,2]
[321785715,1712511139876,-500.0,0.00020897,2]
[321785716,1712511139885,-500.0,0.00020897,2]
[321785717,1712511139895,-335.09486825,0.00020897,2]
[321785718,1712511139908,-500.0,0.00020897,2]
[321785719,1712511139917,-500.0,0.00020897,2]
[321785720,1712511139926,-500.0,0.00020897,2]
[321785721,1712511139936,-500.0,0.00020897,2]
[321785722,1712511139946,-500.0,0.00020897,2]
[321785723,1712511139955,-536.98,0.00020897,2]
[321785724,1712511139965,-500.0,0.00020897,2]
[321785725,1712511139976,-390.9516246,0.00020897,2]
[321785726,1712511139985,-500.0,0.00020897,2]
[321785727,1712511139994,-500.0,0.00020897,2]
[321785728,1712511140003,-500.0,0.00020897,2]
[321785729,1712511140012,-648.06,0.00020897,2]
[321785730,1712511140021,-569.96,0.00020897,2]
[321785731,1712511140032,-500.0,0.00020897,2]
[321785732,1712511140041,-500.0,0.00020897,2]
[321785733,1712511140050,-555.46,0.00020897,2]
[321785734,1712511140059,-233.50568362,0.00020897,2]
[321785735,1712511140068,-173.35980256,0.00020897,2]
[321785736,1712511140078,-500.0,0.00020897,2]
[321785737,1712511140087,-509.83609767,0.00020897,2]
[321785738,1712511140096,-500.0,0.00020897,2]
[321785739,1712511140105,-614.26563743,0.00020897,2]
[321785740,1712511140114,-513.35485329,0.00020897,2]
[321785741,1712511140124,-1233.18,0.00020897,2]
[321785742,1712511140133,-615.95,0.00020897,2]
[321785743,1712511140142,-519.08691832,0.00020897,2]
[321785744,1712511140151,-500.0,0.00020897,2]
[321785745,1712511140160,-500.0,0.00020897,2]
[321785746,1712511140170,-500.0,0.00020897,2]
[321785747,1712511140179,-500.0,0.00020897,2]
[321785748,1712511140189,-1341.17,0.00020897,2]
[321785749,1712511140198,-500.0,0.00020897,2]
[321785750,1712511140208,-500.5721711,0.00020897,2]
[321785751,1712511140218,-234.80895631,0.00020897,2]
[321785752,1712511140227,-500.0,0.00020897,2]
[321785753,1712511140245,-517.2,0.00020897,2]
[321785754,1712511140254,-176.28789335,0.00020897,2]
[321785755,1712511140263,-358.15211993,0.00020897,2]
[321785756,1712511140272,-500.0,0.00020897,2]
[321785757,1712511140283,-500.0,0.00020897,2]
[321785758,1712511140292,-529.22,0.00020897,2]
[321785759,1712511140301,-500.0,0.00020897,2]
[321785760,1712511140311,-500.0,0.00020897,2]
[321785761,1712511140320,-500.0,0.00020897,2]
[321785762,1712511140329,-500.0,0.00020897,2]
[321785763,1712511140339,-500.0,0.00020897,2]
[321785764,1712511140348,-500.0,0.00020897,2]
[321785765,1712511140358,-571.9768015,0.00020897,2]
[321785766,1712511140368,-500.0,0.00020897,2]
[321785767,1712511140378,-500.0,0.00020897,2]
[321785768,1712511140387,-966.27,0.00020897,2]
[321785769,1712511140396,-500.0,0.00020897,2]
[321785770,1712511140406,-500.0,0.00020897,2]
[321785771,1712511140511,-500.0,0.00020897,2]
[321785772,1712511140556,-500.0,0.00020897,2]
[321785773,1712511140566,-815.3,0.00020897,2]
[321785774,1712511140576,-565.13,0.00020897,2]
[321785775,1712511140585,-500.0,0.00020897,2]
[321785776,1712511140594,-512.68963307,0.00020897,2]
[321785777,1712511140604,-500.0,0.00020897,2]
[321785778,1712511140613,-623.34,0.00020897,2]
[321785779,1712511140622,-682.19,0.00020897,2]
[321785780,1712511140631,-500.0,0.00020897,2]
[321785781,1712511140641,-500.0,0.00020897,2]
[321785782,1712511140651,-500.0,0.00020897,2]
[321785783,1712511140660,-500.0,0.00020897,2]
[321785784,1712511140670,-782.7,0.00020897,2]
[321785785,1712511140680,-500.0,0.00020897,2]
[321785786,1712511140690,-1527.63,0.00020897,2]
[321785787,1712511140700,-500.0,0.00020897,2]
[321785788,1712511140710,-500.0,0.00020897,2]
[321785789,1712511140719,-525.05,0.00020897,2]
[321785790,1712511140729,-500.0,0.00020897,2]
[321785791,1712511140739,-500.0,0.00020897,2]
[321785792,1712511140749,-1434.86,0.00020897,2]
[321785793,1712511140759,-500.0,0.00020897,2]
[321785794,1712511140769,-500.0,0.00020897,2]
[321785795,1712511140779,-500.0,0.00020897,2]
[321785796,1712511140789,-500.0,0.00020897,2]
[321785797,1712511140799,-500.0,0.00020897,2]
[321785798,1712511140809,-500.0,0.00020897,2]
[321785799,1712511140819,-500.0,0.00020897,2]
[321785800,1712511140828,-500.0,0.00020897,2]
[321785801,1712511140838,-500.0,0.00020897,2]
[321785802,1712511140848,-500.0,0.00020897,2]
[321785803,1712511140858,-500.0,0.00020897,2]
[321785804,1712511140867,-2125.64,0.00020897,2]
[321785805,1712511140877,-500.0,0.00020897,2]
[321785806,1712511140887,-500.0,0.00020897,2]
[321785807,1712511140897,-500.0,0.00020897,2]
[321785808,1712511140909,-1118.96,0.00020897,2]
[321785809,1712511140918,-1360.48,0.00020897,2]
[321785810,1712511140927,-500.0,0.00020897,2]
[321785811,1712511140939,-173.81209174,0.00020897,2]
[321785812,1712511140948,-669.38,0.00020897,2]
[321785813,1712511140958,-500.0,0.00020897,2]
[321785814,1712511140968,-500.0,0.00020897,2]
[321785815,1712511140978,-746.84,0.00020897,2]
[321785816,1712511140988,-500.0,0.00020897,2]
[321785817,1712511140999,-500.0,0.00020897,2]
[321785818,1712511141009,-500.0,0.00020897,2]
[321785819,1712511141019,-698.32,0.00020897,2]
[321785820,1712511141029,-511.54931532,0.00020897,2]
[321785821,1712511141039,-1230.31,0.00020897,2]
[321785822,1712511141048,-500.0,0.00020897,2]
[321785823,1712511141058,-500.0,0.00020897,2]
[321785824,1712511141067,-661.72,0.00020897,2]
[321785825,1712511141077,-503.43136693,0.00020897,2]
[321785826,1712511141088,-707.87,0.00020897,2]
[321785827,1712511141097,-501.6404196,0.00020897,2]
[321785828,1712511141107,-571.14,0.00020897,2]
[321785829,1712511141117,-712.31,0.00020897,2]
[321785830,1712511141126,-503.32,0.00020897,2]
[321785831,1712511141135,-500.0,0.00020897,2]
[321785832,1712511141145,-643.07,0.00020897,2]
[321785833,1712511141155,-500.0,0.00020897,2]
[321785834,1712511141164,-726.92,0.00020897,2]
[321785835,1712511141174,-502.0983351,0.00020897,2]
[321785836,1712511141183,-500.0,0.00020897,2]
[321785837,1712511141193,-604.97,0.00020897,2]
[321785838,1712511141203,-684.48,0.00020897,2]
[321785839,1712511141213,-500.0,0.00020897,2]
[321785840,1712511141222,-1502.84,0.00020897,2]
[321785841,1712511141232,-500.0,0.00020897,2]
[321785842,1712511141241,-576.44,0.00020897,2]
[321785843,1712511141251,-607.27,0.00020897,2]
[321785844,1712511141260,-500.0,0.00020897,2]
[321785845,1712511141269,-954.49,0.00020897,2]
[321785846,1712511141279,-500.0,0.00020897,2]
[321785847,1712511141290,-500.0,0.00020897,2]
[321785848,1712511141300,-500.0,0.00020897,2]
[321785849,1712511141310,-948.22,0.00020897,2]
[321785850,1712511141320,-500.0,0.00020897,2]
[321785851,1712511141329,-500.0,0.00020897,2]
[321785852,1712511141339,-500.0,0.00020897,2]
[321785853,1712511141350,-694.7,0.00020897,2]
[321785854,1712511141359,-500.0,0.00020897,2]
[321785855,1712511141369,-500.0,0.00020897,2]
[321785856,1712511141379,-534.60425183,0.00020897,2]
[321785857,1712511141389,-513.07,0.00020897,2]
[321785858,1712511141399,-500.0,0.00020897,2]
[321785859,1712511141409,-504.83,0.00020897,2]
[321785860,1712511141419,-1496.51,0.00020897,2]
[321785861,1712511141429,-500.0,0.00020897,2]
[321785862,1712511141499,-735.64,0.00020897,2]
[321785863,1712511141506,-500.0,0.00020897,2]
[321785864,1712511141514,-565.12,0.00020897,2]
[321785865,1712511141521,-601.97,0.00020897,2]
[321785866,1712511141529,-967.89,0.00020897,2]
[321785867,1712511141539,-500.0,0.00020897,2]
[321785868,1712511141549,-626.62,0.00020897,2]
[321785869,1712511141558,-500.0,0.00020897,2]
[321785870,1712511141568,-500.0,0.00020897,2]
[321785871,1712511141578,-500.0,0.00020897,2]
[321785872,1712511141589,-792.56,0.00020897,2]
[321785873,1712511141598,-638.7,0.00020897,2]
[321785874,1712511141609,-770.42,0.00020897,2]
[321785875,1712511141619,-500.0,0.00020897,2]
[321785876,1712511141629,-500.0,0.00020897,2]
[321785877,1712511141639,-500.0,0.00020897,2]
[321785878,1712511141650,-619.89,0.00020897,2]
[321785879,1712511141660,-500.0,0.00020897,2]
[321785880,1712511141669,-500.0,0.00020897,2]
[321785881,1712511141679,-500.0,0.00020897,2]
[321785882,1712511141689,-925.42,0.00020897,2]
[321785883,1712511141699,-710.38,0.00020897,2]
[321785884,1712511141709,-500.0,0.00020897,2]
[321785885,1712511141719,-1021.04,0.00020897,2]
[321785886,1712511141728,-581.82,0.00020897,2]
[321785887,1712511141737,-593.01,0.00020897,2]
[321785888,1712511141747,-828.04,0.00020897,2]
[321785889,1712511141757,-1108.29,0.00020897,2]
[321785890,1712511141767,-825.18,0.00020897,2]
[321785891,1712511141778,-1060.58,0.00020897,2]
[321785892,1712511141789,-500.0,0.00020897,2]
[321785893,1712511141799,-520.83,0.00020897,2]
[321785894,1712511141809,-704.94,0.00020897,2]
[321785895,1712511141819,-537.11874119,0.00020897,2]
[321785896,1712511141829,-500.0,0.00020897,2]
[321785897,1712511141839,-934.26,0.00020897,2]
[321785898,1712511141850,-500.0,0.00020897,2]
[321785899,1712511141860,-649.43,0.00020897,2]
[321785900,1712511141870,-500.0,0.00020897,2]
[321785901,1712511141880,-502.66,0.00020897,2]
[321785902,1712511141890,-1492.61,0.00020897,2]
[321785903,1712511141903,-558.54,0.00020897,2]
[321785904,1712511141912,-500.0,0.00020897,2]
[321785905,1712511141922,-500.0,0.00020897,2]
[321785906,1712511141931,-4199.43,0.00020897,2]
[321785907,1712511141941,-500.0,0.00020897,2]
[321785908,1712511141950,-500.0,0.00020897,2]
[321785909,1712511141960,-500.0,0.00020897,2]
[321785910,1712511141969,-1822.45,0.00020897,2]
[321785911,1712511141979,-899.13,0.00020897,2]
[321785912,1712511141990,-778.46,0.00020897,2]
[321785913,1712511141999,-3616.03,0.00020897,2]
[321785914,1712511142009,-500.0,0.00020897,2]
[321785915,1712511142018,-1317.32,0.00020897,2]
[321785916,1712511142027,-5324.05,0.00020897,2]
[321785917,1712511142038,-991.52,0.00020897,2]
[321785918,1712511142047,-500.0,0.00020897,2]
[321785919,1712511142056,-583.11,0.00020897,2]
[321785920,1712511142066,-502.78,0.00020897,2]
[321785921,1712511142075,-2684.12,0.00020897,2]
[321785922,1712511142086,-805.07,0.00020897,2]
[321785923,1712511142095,-564.25,0.00020897,2]
[321785924,1712511142105,-500.0,0.00020897,2]
[321785925,1712511142114,-630.78,0.00020897,2]
[321785926,1712511142124,-500.0,0.00020897,2]
[321785927,1712511142133,-500.0,0.00020897,2]
[321785928,1712511142143,-500.0,0.00020897,2]
[321785929,1712511142153,-500.0,0.00020897,2]
[321785930,1712511142163,-743.7,0.00020897,2]
[321785931,1712511142173,-500.0,0.00020897,2]
[321785932,1712511142183,-532.55,0.00020897,2]
[321785933,1712511142193,-500.0,0.00020897,2]
[321785934,1712511142204,-504.31,0.00020897,2]
[321785935,1712511142215,-1412.85,0.00020897,2]
[321785936,1712511142226,-970.1,0.00020897,2]
[321785937,1712511142235,-1196.84,0.00020897,2]
[321785938,1712511142244,-2439.1,0.00020897,2]
[321785939,1712511142254,-737.68,0.00020897,2]
[321785940,1712511142264,-1834.99,0.00020897,2]
[321785941,1712511142275,-1457.39,0.00020897,2]
[321785942,1712511142285,-864.95,0.00020897,2]
[321785943,1712511142294,-580.95,0.00020897,2]
[321785944,1712511142303,-1386.75,0.00020897,2]
[321785945,1712511142314,-207.90584281,0.00020897,2]
[321785946,1712511142324,-1376.58,0.00020897,2]
[321785947,1712511142333,-1087.77,0.00020897,2]
[321785948,1712511142343,-650.28,0.00020897,2]
[321785949,1712511142355,-1137.79,0.00020897,2]
[321785950,1712511142364,-1253.2,0.00020897,2]
[321785951,1712511142373,-1690.12,0.00020897,2]
[321785952,1712511142382,-2125.63431525,0.00020899,2]